Workbook

Sheet 세출예산서
A1: 세출예산서
A2: (단위 : 천원)
B3: 과 목 | E3: 예산액 | F3: 전년도예산액 | G3: 비교증△감 | H3: 산 출 기 초(단위:원) | J3: 과목해소 및 유의사항
B4: 관 | C4: 항 | D4: 목
B5: 1.이사회비 | E5: =E6 -> 800 | F5: =F6 -> 1,600 | G5: =E5-F5 -> △800
C6: 1.이사회비 | E6: =E7 -> 800 | F6: =F7 -> 1,600 | G6: △800
D7: 1.이사회운영비 | E7: 800 | F7: 1,600 | G7: △800 | J7: 임원수당 : 위원회참석 수당 등 실비변상
J8: 임원수당 : 위원회참석 수당 등 실비변상
B9: 2.사무비 | E9: =+E10 -> 4,948 | F9: =+F10 -> 4,900 | G9: 48
C10: 2.수용비 | E10: =E11 -> 4,948 | F10: =F11 -> 4,900 | G10: 48
D11: 1.법인운영비 | E11: 4,948 | F11: 4,900 | G11: 48 | H11: 법인 세무비용 | I11: 3,300,000 | J11: 공공요금 : 우편․전신․전화․전기․수도요금 등
H12: 법인 등기비용 | I12: 200,000 | J12: 연료비 : 난방용 연료와 그 부대경비(공고 및 운반비를 포함한다)
H13: 법인차량 유지비 60000원*10월= | I13: 600,000
H14: 법인차량 보험료 | I14: 718,000 | J14: 차량비 : 차량의 세금․수수료․수리․유류․부속품대, 보험료
H15: 경조사비 90000*1회 | I15: 90,000
H16: 인증서 등 제비용 | I16: 40,000
B17: 3.재산조성비 | E17: =E18+E21 -> 34,342 | F17: =F18+F21 -> 38,000 | G17: =E17-F17 -> △3,658
C18: 1.시설비 | E18: =+E19+E20 -> 0 | F18: =+F19+F20 -> 0 | G18: 0
D19: 2.시설비 | E19: 0 | F19: 0 | G19: 0 | J19: 건물의 신, 증축비 및 부대경비(공고료 포함) ※ 비품이나 고정시설물도 건축공사와 일괄 시공시는 시설비에 편성
D20: 3.적립금 | E20: 0 | F20: 0 | G20: 0 | J20: 노후교실의 개축,증축 등을 위한 적립금을 집행할 경우 ※ 적립금은 관할청의 신고수리를 득한 경우 가능
C21: 2.재산관리비 | E21: =E22+E23 -> 34,342 | F21: =F22+F23 -> 38,000 | G21: △3,658
D22: 1.재산유지비 | E22: 0 | F22: 0 | G22: 0 | J22: 수익용재산(건물) 유지관리, 보수비 등
D23: 2.공과보험료 | E23: 34,342 | F23: 38,000 | G23: △3,658 | H23: 토지 재산세 | I23: 25,816,000 | J23: 화재보험료 및 기타 공과금, 각종 세금
H24: 건물 재산세 | I24: 276,000 | J24: ※ 법인세(주민세), 국공유지 사용료, 각종부담금, 적십자회비 등
H25: 부가가치세 | I25: 8,074,000 | J25: ※ 법인세(주민세), 국공유지 사용료, 각종부담금, 적십자회비 등
H26: 화재보험료 | I26: 152,000 | J26: ※ 법인세(주민세), 국공유지 사용료, 각종부담금, 적십자회비 등
H27: 지역자원시설세 | I27: 24,000
B29: 4.전출금 | E29: =E30 -> 59,062 | F29: =F30 -> 68,288 | G29: =E29-F29 -> △9,226
C30: 1.전출금 | E30: =E31+E33 -> 59,062 | F30: =F31+F33 -> 68,288 | G30: =E30-F30 -> △9,226 | J30: 법정부담금 전출금, 법인지정사업비 전출금
D31: 1.고등학교법인전출금 | E31: 29,531 | F31: 34,144 | G31: =E31-F31 -> △4,613 | H31: 건강보험부담금 | I31: =SUM((E31*1000)-I32) -> 28,918,580 | J31: ※ 반드시 학교급별로 구분하여 작성하고, 세부항목별로 작성
H32: 법인세환급금 | I32: 612,420
D33: 2.중학교법인전출금 | E33: 29,531 | F33: 34,144 | G33: =E33-F33 -> △4,613 | H33: 건강보험부담금 | I33: =SUM((E33*1000)-I34) -> 29,429,050
H34: 법인세환급금 | I34: 101,950
B35: 9.잡지출 | E35: =E36 -> 0 | F35: =F36 -> 0 | G35: =G36 -> 0
C36: 1.제지출 | E36: =SUM(E37:E37) -> 0 | F36: =SUM(F37:F37) -> 0 | G36: =E36-F36 -> 0
D37: 4.기타제지출 | E37: 0 | F37: 0 | G37: 0 | J37: 법인협의회
B38: 10.예비비 | E38: =E39 -> 100,000 | F38: =F39 -> 100,000 | G38: 0
C39: 1.예비비 | E39: =E40 -> 100,000 | F39: =F40 -> 100,000 | G39: 0
D40: 1.임대보증금미환급금 | E40: 100,000 | F40: 100,000 | G40: 0 | H40: 임대보증금 미환급금 | I40: 100,000,000
B41: 세 출 합 계 | E41: =E5+E9+E17+E29+E35+E38 -> 199,152 | F41: =F5+F9+F17+F29+F35+F38 -> 212,788 | G41: △13,636
